[Event "Titled Tuesday Blitz April 18 Early 2023"]
[White "Kubatko, Ivan"]
[Black "Aanna12"]
[WhiteFideId "24111473"]
[WhiteElo "2285"]
[BlackElo "2197"]
[Result "1-0"]
[Round "02"]
[TimeControl "180+2"]
[Date "2023.04.18"]
[WhiteClock "0:00:03"]
[BlackClock "0:00:01"]

1. e4 {[%clk 0:02:57]}  c5 {[%clk 0:02:58]} 2. c3 {[%clk 0:02:50]}  Nf6 {[%clk 0:02:57]} 3. e5 {[%clk 0:02:49]}  Nd5 {[%clk 0:02:57]} 4. g3 {[%clk 0:02:49]}  d6 {[%clk 0:02:52]} 5. exd6 {[%clk 0:02:49]}  Qxd6 {[%clk 0:02:52]} 6. Bg2 {[%clk 0:02:50]}  Nc6 {[%clk 0:02:43]} 7. Nf3 {[%clk 0:02:47]}  e6 {[%clk 0:02:41]} 8. d4 {[%clk 0:02:46]}  Be7 {[%clk 0:02:10]} 9. O-O {[%clk 0:02:45]}  O-O {[%clk 0:02:09]} 10. Na3 {[%clk 0:02:41]}  cxd4 {[%clk 0:02:03]} 11. Nb5 {[%clk 0:02:39]}  Qd8 {[%clk 0:01:58]} 12. Nfxd4 {[%clk 0:02:26]}  Nxd4 {[%clk 0:01:52]} 13. Nxd4 {[%clk 0:02:15]}  e5 {[%clk 0:01:49]} 14. Nb5 {[%clk 0:01:42]}  Be6 {[%clk 0:01:47]} 15. c4 {[%clk 0:01:41]}  Nb4 {[%clk 0:01:43]} 16. b3 {[%clk 0:01:37]}  a6 {[%clk 0:01:35]} 17. Qxd8 {[%clk 0:01:14]}  Raxd8 {[%clk 0:01:30]} 18. Nc7 {[%clk 0:01:12]}  Bc8 {[%clk 0:01:30]} 19. Ba3 {[%clk 0:00:51]}  Rd7 {[%clk 0:01:12]} 20. Bxb4 {[%clk 0:00:43]}  Rxc7 {[%clk 0:01:11]} 21. Ba5 {[%clk 0:00:30]}  Rd7 {[%clk 0:01:04]} 22. Rad1 {[%clk 0:00:28]}  b5 {[%clk 0:01:02]} 23. cxb5 {[%clk 0:00:17]}  axb5 {[%clk 0:01:01]} 24. Bc6 {[%clk 0:00:17]}  Rxd1 {[%clk 0:01:00]} 25. Rxd1 {[%clk 0:00:16]}  b4 {[%clk 0:00:59]} 26. Bb6 {[%clk 0:00:09]}  Bf5 {[%clk 0:00:58]} 27. Bd5 {[%clk 0:00:09]}  Rc8 {[%clk 0:00:52]} 28. Bc4 {[%clk 0:00:09]}  h6 {[%clk 0:00:50]} 29. f3 {[%clk 0:00:08]}  Ra8 {[%clk 0:00:49]} 30. Rd2 {[%clk 0:00:05]}  Bb1 {[%clk 0:00:45]} 31. Rd7 {[%clk 0:00:04]}  Kf8 {[%clk 0:00:45]} 32. Rd5 {[%clk 0:00:03]}  Rxa2 {[%clk 0:00:38]} 33. Rxe5 {[%clk 0:00:03]}  Rd2 {[%clk 0:00:24]} 34. Bc5 {[%clk 0:00:03]}  Bxc5+ {[%clk 0:00:22]} 35. Rxc5 {[%clk 0:00:04]}  Rd1+ {[%clk 0:00:18]} 36. Kg2 {[%clk 0:00:03]}  Rd2+ {[%clk 0:00:17]} 37. Kg1 {[%clk 0:00:04]}  Rd1+ {[%clk 0:00:18]} 38. Kg2 {[%clk 0:00:04]}  Rd2+ {[%clk 0:00:18]} 39. Kh3 {[%clk 0:00:04]}  g6 {[%clk 0:00:11]} 40. Rc7 {[%clk 0:00:04]}  Bf5+ {[%clk 0:00:08]} 41. g4 {[%clk 0:00:04]}  Be6 {[%clk 0:00:08]} 42. Bxe6 {[%clk 0:00:04]}  fxe6 {[%clk 0:00:09]} 43. Rb7 {[%clk 0:00:04]}  Rd3 {[%clk 0:00:08]} 44. Rxb4 {[%clk 0:00:04]}  Rxf3+ {[%clk 0:00:08]} 45. Kg2 {[%clk 0:00:05]}  Rd3 {[%clk 0:00:07]} 46. Rb7 {[%clk 0:00:05]}  e5 {[%clk 0:00:05]} 47. Kf2 {[%clk 0:00:03]}  Rc3 {[%clk 0:00:03]} 48. b4 {[%clk 0:00:03]}  Rb3 {[%clk 0:00:02]} 49. b5 {[%clk 0:00:03]}  e4 {[%clk 0:00:02]} 50. h4 {[%clk 0:00:03]}  g5 {[%clk 0:00:01]} 51. h5 {[%clk 0:00:03]} 1-0


[Site "https://www.chess.com"]

[Event "Titled Tuesday Blitz April 18 Early 2023"]
[White "Ciuffoletti, Paolo"]
[Black "b_6"]
[WhiteFideId "807630"]
[WhiteElo "2143"]
[BlackElo "2456"]
[Result "0-1"]
[Round "02"]
[TimeControl "180+2"]
[Date "2023.04.18"]
[WhiteClock "0:00:03"]
[BlackClock "0:00:14"]

1. e4 {[%clk 0:03:00]}  e6 {[%clk 0:02:59]} 2. d4 {[%clk 0:02:59]}  d5 {[%clk 0:02:59]} 3. e5 {[%clk 0:03:00]}  c5 {[%clk 0:02:59]} 4. c3 {[%clk 0:03:00]}  Nc6 {[%clk 0:03:00]} 5. Nf3 {[%clk 0:03:00]}  Bd7 {[%clk 0:03:00]} 6. Be2 {[%clk 0:03:00]}  Nge7 {[%clk 0:02:59]} 7. O-O {[%clk 0:02:52]}  Ng6 {[%clk 0:02:58]} 8. g3 {[%clk 0:02:33]}  cxd4 {[%clk 0:02:57]} 9. cxd4 {[%clk 0:02:32]}  f6 {[%clk 0:02:58]} 10. Bd3 {[%clk 0:02:19]}  fxe5 {[%clk 0:02:47]} 11. Bxg6+ {[%clk 0:01:57]}  hxg6 {[%clk 0:02:47]} 12. Nxe5 {[%clk 0:01:57]}  Nxe5 {[%clk 0:02:34]} 13. dxe5 {[%clk 0:01:57]}  Qc7 {[%clk 0:02:27]} 14. Bf4 {[%clk 0:01:51]}  O-O-O {[%clk 0:02:22]} 15. Nc3 {[%clk 0:01:48]}  Kb8 {[%clk 0:02:18]} 16. Rc1 {[%clk 0:01:46]}  Qa5 {[%clk 0:02:09]} 17. Qg4 {[%clk 0:01:26]}  d4 {[%clk 0:01:42]} 18. Ne4 {[%clk 0:01:14]}  Qd5 {[%clk 0:01:23]} 19. Nd6 {[%clk 0:01:08]}  Bc6 {[%clk 0:01:16]} 20. Rxc6 {[%clk 0:01:04]}  bxc6 {[%clk 0:01:12]} 21. Nf7 {[%clk 0:00:59]}  Bc5 {[%clk 0:00:56]} 22. Nxh8 {[%clk 0:00:48]}  Rxh8 {[%clk 0:00:55]} 23. Qxg6 {[%clk 0:00:46]}  d3 {[%clk 0:00:39]} 24. Qxg7 {[%clk 0:00:38]}  Rd8 {[%clk 0:00:37]} 25. Rd1 {[%clk 0:00:36]}  Qf3 {[%clk 0:00:28]} 26. Rd2 {[%clk 0:00:32]}  Bb4 {[%clk 0:00:27]} 27. Qf6 {[%clk 0:00:21]}  Rd5 {[%clk 0:00:20]} 28. Qxe6 {[%clk 0:00:08]}  Bxd2 {[%clk 0:00:19]} 29. Bxd2 {[%clk 0:00:08]}  Qd1+ {[%clk 0:00:16]} 30. Kg2 {[%clk 0:00:08]}  Qxd2 {[%clk 0:00:17]} 31. Qe8+ {[%clk 0:00:07]}  Kb7 {[%clk 0:00:17]} 32. e6 {[%clk 0:00:06]}  Qe2 {[%clk 0:00:16]} 33. e7 {[%clk 0:00:06]}  Qe4+ {[%clk 0:00:16]} 34. f3 {[%clk 0:00:03]}  Qe2+ {[%clk 0:00:16]} 35. Kh3 {[%clk 0:00:03]}  Qe6+ {[%clk 0:00:15]} 36. g4 {[%clk 0:00:03]}  Re5 {[%clk 0:00:14]} 0-1


[Site "https://www.chess.com"]

[Event "Titled Tuesday Blitz April 18 Early 2023"]
[White "Thiel, Thomas"]
[Black "Estrada Nieto, Julian"]
[WhiteFideId "4615964"]
[BlackFideId "5101018"]
[WhiteElo "2176"]
[BlackElo "2161"]
[Result "0-1"]
[Round "02"]
[TimeControl "180+2"]
[Date "2023.04.18"]
[WhiteClock "0:00:04"]
[BlackClock "0:00:07"]

1. e4 {[%clk 0:03:00]}  e5 {[%clk 0:02:59]} 2. Nf3 {[%clk 0:02:58]}  Nc6 {[%clk 0:02:59]} 3. d4 {[%clk 0:02:57]}  exd4 {[%clk 0:02:57]} 4. Nxd4 {[%clk 0:02:58]}  Nf6 {[%clk 0:02:57]} 5. Nxc6 {[%clk 0:02:57]}  bxc6 {[%clk 0:02:58]} 6. e5 {[%clk 0:02:56]}  Qe7 {[%clk 0:02:58]} 7. Qe2 {[%clk 0:02:55]}  Nd5 {[%clk 0:02:59]} 8. h4 {[%clk 0:02:54]}  Qe6 {[%clk 0:02:57]} 9. g3 {[%clk 0:02:52]}  Bc5 {[%clk 0:02:53]} 10. Bh3 {[%clk 0:02:48]}  Qe7 {[%clk 0:02:52]} 11. O-O {[%clk 0:02:47]}  O-O {[%clk 0:02:19]} 12. c4 {[%clk 0:02:44]}  Nb6 {[%clk 0:02:13]} 13. b3 {[%clk 0:02:32]}  d6 {[%clk 0:02:05]} 14. Bxc8 {[%clk 0:02:29]}  Raxc8 {[%clk 0:01:59]} 15. Bb2 {[%clk 0:02:27]}  Rfe8 {[%clk 0:01:56]} 16. Re1 {[%clk 0:02:09]}  Nd7 {[%clk 0:01:55]} 17. Nd2 {[%clk 0:02:04]}  Nxe5 {[%clk 0:01:36]} 18. Bxe5 {[%clk 0:01:37]}  Qxe5 {[%clk 0:01:26]} 19. Qxe5 {[%clk 0:01:36]}  Rxe5 {[%clk 0:01:25]} 20. Rxe5 {[%clk 0:01:33]}  dxe5 {[%clk 0:01:25]} 21. Nf3 {[%clk 0:01:29]}  e4 {[%clk 0:01:17]} 22. Ne5 {[%clk 0:01:25]}  e3 {[%clk 0:01:03]} 23. fxe3 {[%clk 0:01:12]}  Re8 {[%clk 0:00:56]} 24. Nxc6 {[%clk 0:01:10]}  Rxe3 {[%clk 0:00:54]} 25. Kg2 {[%clk 0:01:09]}  h5 {[%clk 0:00:39]} 26. b4 {[%clk 0:01:01]}  Bd6 {[%clk 0:00:38]} 27. c5 {[%clk 0:00:56]}  Bxg3 {[%clk 0:00:29]} 28. Nxa7 {[%clk 0:00:45]}  Be5 {[%clk 0:00:29]} 29. Rd1 {[%clk 0:00:38]}  Ra3 {[%clk 0:00:27]} 30. Nc6 {[%clk 0:00:36]}  Rxa2+ {[%clk 0:00:27]} 31. Kf3 {[%clk 0:00:35]}  Bf6 {[%clk 0:00:25]} 32. Rd7 {[%clk 0:00:30]}  Bxh4 {[%clk 0:00:16]} 33. Rxc7 {[%clk 0:00:29]}  Rb2 {[%clk 0:00:14]} 34. Rc8+ {[%clk 0:00:20]}  Kh7 {[%clk 0:00:14]} 35. Rc7 {[%clk 0:00:21]}  f6 {[%clk 0:00:12]} 36. Rb7 {[%clk 0:00:17]}  Bf2 {[%clk 0:00:11]} 37. Nd8 {[%clk 0:00:14]}  Kg6 {[%clk 0:00:10]} 38. Ne6 {[%clk 0:00:12]}  h4 {[%clk 0:00:08]} 39. Rxg7+ {[%clk 0:00:09]}  Kf5 {[%clk 0:00:08]} 40. Nf4 {[%clk 0:00:04]}  Bg3 {[%clk 0:00:07]} 0-1


[Site "https://www.chess.com"]

[Event "Titled Tuesday Blitz April 18 Early 2023"]
[White "HamedWafa4"]
[Black "Sailer, Mike"]
[BlackFideId "2012901"]
[WhiteElo "2451"]
[BlackElo "2109"]
[Result "1-0"]
[Round "02"]
[TimeControl "180+2"]
[Date "2023.04.18"]
[WhiteClock "0:02:00"]
[BlackClock "0:02:16"]

1. e4 {[%clk 0:03:00]}  d5 {[%clk 0:03:00]} 2. exd5 {[%clk 0:02:55]}  Qxd5 {[%clk 0:03:00]} 3. Nc3 {[%clk 0:02:56]}  Qd6 {[%clk 0:03:00]} 4. d4 {[%clk 0:02:55]}  Nf6 {[%clk 0:02:59]} 5. Nf3 {[%clk 0:02:49]}  c6 {[%clk 0:02:55]} 6. Ne5 {[%clk 0:02:48]}  Nbd7 {[%clk 0:02:48]} 7. Nc4 {[%clk 0:02:48]}  Qc7 {[%clk 0:02:46]} 8. Qf3 {[%clk 0:02:45]}  Nb6 {[%clk 0:02:43]} 9. Bf4 {[%clk 0:02:43]}  Qd8 {[%clk 0:02:41]} 10. O-O-O {[%clk 0:02:25]}  Bg4 {[%clk 0:02:39]} 11. Qd3 {[%clk 0:02:14]}  Bxd1 {[%clk 0:02:37]} 12. Qxd1 {[%clk 0:02:14]}  Nxc4 {[%clk 0:02:35]} 13. Bxc4 {[%clk 0:02:15]}  Nd5 {[%clk 0:02:35]} 14. Nxd5 {[%clk 0:02:15]}  e5 {[%clk 0:02:26]} 15. Re1 {[%clk 0:02:08]}  cxd5 {[%clk 0:02:16]} 16. Bb5+ {[%clk 0:02:06]}  Ke7 {[%clk 0:02:16]} 17. Rxe5+ {[%clk 0:02:06]}  Kf6 {[%clk 0:02:16]} 18. Bg5+ {[%clk 0:02:00]} 1-0


[Site "https://www.chess.com"]

[Event "Titled Tuesday Blitz April 18 Early 2023"]
[White "mrithyunjay"]
[Black "Kopczynski, Michal"]
[BlackFideId "1124200"]
[WhiteElo "2162"]
[BlackElo "2212"]
[Result "1-0"]
[Round "02"]
[TimeControl "180+2"]
[Date "2023.04.18"]
[WhiteClock "0:00:43"]
[BlackClock "0:00:13"]

1. e4 {[%clk 0:02:38]}  c5 {[%clk 0:02:57]} 2. Nf3 {[%clk 0:02:37]}  d6 {[%clk 0:02:57]} 3. d4 {[%clk 0:02:37]}  cxd4 {[%clk 0:02:58]} 4. Nxd4 {[%clk 0:02:38]}  Nf6 {[%clk 0:02:59]} 5. Nc3 {[%clk 0:02:38]}  g6 {[%clk 0:03:00]} 6. Be3 {[%clk 0:02:38]}  Bg7 {[%clk 0:03:00]} 7. f3 {[%clk 0:02:38]}  O-O {[%clk 0:03:00]} 8. Qd2 {[%clk 0:02:37]}  Nc6 {[%clk 0:03:01]} 9. g4 {[%clk 0:02:37]}  h5 {[%clk 0:02:55]} 10. h3 {[%clk 0:02:36]}  Bd7 {[%clk 0:02:46]} 11. O-O-O {[%clk 0:02:29]}  Qa5 {[%clk 0:02:43]} 12. Kb1 {[%clk 0:02:27]}  Rfc8 {[%clk 0:02:31]} 13. g5 {[%clk 0:02:23]}  Nh7 {[%clk 0:02:23]} 14. Nd5 {[%clk 0:02:16]}  Qxd2 {[%clk 0:02:20]} 15. Rxd2 {[%clk 0:02:17]}  Kf8 {[%clk 0:01:53]} 16. c3 {[%clk 0:02:12]}  Ne5 {[%clk 0:01:22]} 17. f4 {[%clk 0:02:10]}  Nc4 {[%clk 0:01:21]} 18. Bxc4 {[%clk 0:02:09]}  Rxc4 {[%clk 0:01:22]} 19. b3 {[%clk 0:02:09]}  Rcc8 {[%clk 0:01:21]} 20. c4 {[%clk 0:02:00]}  e5 {[%clk 0:01:14]} 21. Ne2 {[%clk 0:01:57]}  Bc6 {[%clk 0:01:11]} 22. Rhd1 {[%clk 0:01:53]}  Rd8 {[%clk 0:01:09]} 23. Ndc3 {[%clk 0:01:46]}  Ke7 {[%clk 0:01:01]} 24. f5 {[%clk 0:01:42]}  gxf5 {[%clk 0:00:55]} 25. exf5 {[%clk 0:01:43]}  f6 {[%clk 0:00:55]} 26. g6 {[%clk 0:01:40]}  Ng5 {[%clk 0:00:55]} 27. Ng3 {[%clk 0:01:26]}  Nf3 {[%clk 0:00:44]} 28. Rf2 {[%clk 0:01:18]}  Rh8 {[%clk 0:00:40]} 29. b4 {[%clk 0:01:10]}  a6 {[%clk 0:00:40]} 30. b5 {[%clk 0:01:09]}  axb5 {[%clk 0:00:37]} 31. cxb5 {[%clk 0:01:10]}  Ra3 {[%clk 0:00:22]} 32. Kb2 {[%clk 0:00:47]}  Rxc3 {[%clk 0:00:20]} 33. Kxc3 {[%clk 0:00:46]}  Bxb5 {[%clk 0:00:21]} 34. Rxf3 {[%clk 0:00:46]}  h4 {[%clk 0:00:21]} 35. Ne4 {[%clk 0:00:45]}  Rc8+ {[%clk 0:00:20]} 36. Kb2 {[%clk 0:00:45]}  d5 {[%clk 0:00:20]} 37. Rxd5 {[%clk 0:00:45]}  Bc6 {[%clk 0:00:19]} 38. Bc5+ {[%clk 0:00:45]}  Ke8 {[%clk 0:00:17]} 39. Nd6+ {[%clk 0:00:45]}  Kd7 {[%clk 0:00:18]} 40. Nxc8+ {[%clk 0:00:46]}  Bxd5 {[%clk 0:00:18]} 41. Nb6+ {[%clk 0:00:47]}  Kc6 {[%clk 0:00:17]} 42. Nxd5 {[%clk 0:00:47]}  Kxd5 {[%clk 0:00:16]} 43. Be7 {[%clk 0:00:48]}  Ke4 {[%clk 0:00:15]} 44. Rf1 {[%clk 0:00:48]}  b5 {[%clk 0:00:14]} 45. Kb3 {[%clk 0:00:48]}  Ke3 {[%clk 0:00:15]} 46. Bc5+ {[%clk 0:00:47]}  Ke2 {[%clk 0:00:15]} 47. Rg1 {[%clk 0:00:47]}  e4 {[%clk 0:00:15]} 48. Rg4 {[%clk 0:00:42]}  Kf3 {[%clk 0:00:14]} 49. Rxh4 {[%clk 0:00:42]}  e3 {[%clk 0:00:14]} 50. Bxe3 {[%clk 0:00:42]}  Kxe3 {[%clk 0:00:15]} 51. Rh7 {[%clk 0:00:42]}  Bf8 {[%clk 0:00:16]} 52. Rf7 {[%clk 0:00:43]}  Bh6 {[%clk 0:00:15]} 53. Rxf6 {[%clk 0:00:42]}  Kf4 {[%clk 0:00:15]} 54. Rf7 {[%clk 0:00:42]}  Ke5 {[%clk 0:00:15]} 55. h4 {[%clk 0:00:42]}  Kd6 {[%clk 0:00:14]} 56. f6 {[%clk 0:00:42]}  Ke6 {[%clk 0:00:14]} 57. h5 {[%clk 0:00:42]}  Ke5 {[%clk 0:00:12]} 58. Rh7 {[%clk 0:00:42]}  Be3 {[%clk 0:00:12]} 59. g7 {[%clk 0:00:43]}  Kxf6 {[%clk 0:00:11]} 60. g8=Q {[%clk 0:00:43]}  Ke5 {[%clk 0:00:12]} 61. Re7+ {[%clk 0:00:42]}  Kf4 {[%clk 0:00:12]} 62. Qf8+ {[%clk 0:00:42]}  Kg3 {[%clk 0:00:13]} 63. Rg7+ {[%clk 0:00:43]}  Kh4 {[%clk 0:00:12]} 64. Qf6+ {[%clk 0:00:43]}  Kh3 {[%clk 0:00:12]} 65. Qf3+ {[%clk 0:00:43]}  Kh2 {[%clk 0:00:13]} 66. Qg2# {[%clk 0:00:43]} 1-0


[Site "https://www.chess.com"]

[Event "Titled Tuesday Blitz April 18 Early 2023"]
[White "Vargas Rodriguez, Wilver"]
[Black "Gonzalez, Francisco Silva"]
[WhiteFideId "3509672"]
[BlackFideId "1512285"]
[WhiteElo "2224"]
[BlackElo "2074"]
[Result "0-1"]
[Round "02"]
[TimeControl "180+2"]
[Date "2023.04.18"]
[WhiteClock "0:00:11"]
[BlackClock "0:01:45"]

1. e4 {[%clk 0:03:00]}  e5 {[%clk 0:02:58]} 2. Nf3 {[%clk 0:03:00]}  Nc6 {[%clk 0:02:58]} 3. d4 {[%clk 0:03:00]}  exd4 {[%clk 0:02:57]} 4. Nxd4 {[%clk 0:03:01]}  Bc5 {[%clk 0:02:57]} 5. Be3 {[%clk 0:03:01]}  Qf6 {[%clk 0:02:56]} 6. c3 {[%clk 0:02:58]}  Nge7 {[%clk 0:02:54]} 7. Bc4 {[%clk 0:02:57]}  O-O {[%clk 0:02:53]} 8. O-O {[%clk 0:02:56]}  Bb6 {[%clk 0:02:53]} 9. Na3 {[%clk 0:02:48]}  Rd8 {[%clk 0:02:49]} 10. Nac2 {[%clk 0:02:12]}  d5 {[%clk 0:02:47]} 11. Nxc6 {[%clk 0:02:05]}  bxc6 {[%clk 0:02:47]} 12. Bb3 {[%clk 0:01:41]}  Ba6 {[%clk 0:02:33]} 13. Re1 {[%clk 0:01:24]}  dxe4 {[%clk 0:02:32]} 14. Qg4 {[%clk 0:01:24]}  Bd3 {[%clk 0:02:24]} 15. Nd4 {[%clk 0:01:13]}  Nd5 {[%clk 0:02:11]} 16. Bg5 {[%clk 0:01:05]}  Qg6 {[%clk 0:02:10]} 17. Nf5 {[%clk 0:00:16]}  Re8 {[%clk 0:02:09]} 18. Qg3 {[%clk 0:00:14]}  Qxf5 {[%clk 0:02:07]} 19. Bh6 {[%clk 0:00:14]}  Qg6 {[%clk 0:02:06]} 20. Bg5 {[%clk 0:00:13]}  a5 {[%clk 0:01:53]} 21. a4 {[%clk 0:00:12]}  h6 {[%clk 0:01:51]} 22. Be3 {[%clk 0:00:09]}  Qxg3 {[%clk 0:01:48]} 23. hxg3 {[%clk 0:00:10]}  Nxe3 {[%clk 0:01:47]} 24. fxe3 {[%clk 0:00:11]}  Rab8 {[%clk 0:01:45]} 0-1


[Site "https://www.chess.com"]

[Event "Titled Tuesday Blitz April 18 Early 2023"]
[White "Melikhov, Evgeny V."]
[Black "Stead, Kerry"]
[WhiteFideId "4122046"]
[BlackFideId "3202577"]
[WhiteElo "2158"]
[BlackElo "1997"]
[Result "1-0"]
[Round "02"]
[TimeControl "180+2"]
[Date "2023.04.18"]
[WhiteClock "0:00:56"]
[BlackClock "0:01:15"]

1. d4 {[%clk 0:03:00]}  c5 {[%clk 0:02:59]} 2. d5 {[%clk 0:03:00]}  f5 {[%clk 0:02:59]} 3. e4 {[%clk 0:02:53]}  fxe4 {[%clk 0:02:58]} 4. Nc3 {[%clk 0:02:50]}  Nf6 {[%clk 0:02:58]} 5. Bg5 {[%clk 0:02:50]}  d6 {[%clk 0:02:52]} 6. Bxf6 {[%clk 0:02:43]}  exf6 {[%clk 0:02:51]} 7. Nxe4 {[%clk 0:02:41]}  Qb6 {[%clk 0:02:47]} 8. Ne2 {[%clk 0:01:53]}  Bf5 {[%clk 0:02:44]} 9. N2c3 {[%clk 0:01:49]}  Nd7 {[%clk 0:02:41]} 10. Bb5 {[%clk 0:01:47]}  O-O-O {[%clk 0:02:40]} 11. Bxd7+ {[%clk 0:01:44]}  Rxd7 {[%clk 0:02:39]} 12. O-O {[%clk 0:01:43]}  Qxb2 {[%clk 0:02:26]} 13. Rb1 {[%clk 0:01:40]}  Qa3 {[%clk 0:02:26]} 14. Rb3 {[%clk 0:01:39]}  Qa5 {[%clk 0:02:21]} 15. Qf3 {[%clk 0:01:38]}  Bg6 {[%clk 0:02:15]} 16. Rfb1 {[%clk 0:01:37]}  b6 {[%clk 0:02:14]} 17. Nb5 {[%clk 0:01:24]}  Be7 {[%clk 0:02:06]} 18. Ra3 {[%clk 0:01:17]}  Bxe4 {[%clk 0:01:49]} 19. Qxe4 {[%clk 0:01:17]}  Qd2 {[%clk 0:01:49]} 20. Nxa7+ {[%clk 0:01:15]}  Kb7 {[%clk 0:01:26]} 21. Nc6 {[%clk 0:01:14]}  Bd8 {[%clk 0:01:15]} 22. Ra7+ {[%clk 0:01:11]}  Kc8 {[%clk 0:01:15]} 23. Qe6 {[%clk 0:00:56]} 1-0


[Site "https://www.chess.com"]

[Event "Titled Tuesday Blitz April 18 Early 2023"]
[White "Vanek, Tomas"]
[Black "Federzoni, Enzo"]
[WhiteFideId "313459"]
[BlackFideId "2173301"]
[WhiteElo "2052"]
[BlackElo "2039"]
[Result "1/2-1/2"]
[Round "02"]
[TimeControl "180+2"]
[Date "2023.04.18"]
[WhiteClock "0:00:15"]
[BlackClock "0:00:55"]

1. a3 {[%clk 0:02:59]}  d5 {[%clk 0:02:58]} 2. f4 {[%clk 0:02:56]}  c5 {[%clk 0:02:53]} 3. Nf3 {[%clk 0:02:56]}  Nc6 {[%clk 0:02:54]} 4. g3 {[%clk 0:02:47]}  g6 {[%clk 0:02:54]} 5. Bg2 {[%clk 0:02:47]}  Bg7 {[%clk 0:02:55]} 6. O-O {[%clk 0:02:46]}  Nf6 {[%clk 0:02:55]} 7. d3 {[%clk 0:02:45]}  O-O {[%clk 0:02:56]} 8. c3 {[%clk 0:02:44]}  d4 {[%clk 0:02:56]} 9. Nbd2 {[%clk 0:02:36]}  Nd5 {[%clk 0:02:53]} 10. Ne4 {[%clk 0:02:23]}  dxc3 {[%clk 0:02:53]} 11. bxc3 {[%clk 0:02:21]}  Nxc3 {[%clk 0:02:53]} 12. Nxc3 {[%clk 0:02:16]}  Bxc3 {[%clk 0:02:54]} 13. Rb1 {[%clk 0:02:15]}  Bg7 {[%clk 0:02:54]} 14. Bb2 {[%clk 0:02:10]}  Nd4 {[%clk 0:02:54]} 15. Bxd4 {[%clk 0:02:04]}  cxd4 {[%clk 0:02:54]} 16. Ne5 {[%clk 0:01:50]}  Qd6 {[%clk 0:02:51]} 17. Bxb7 {[%clk 0:01:25]}  Bxb7 {[%clk 0:02:49]} 18. Rxb7 {[%clk 0:01:24]}  Bxe5 {[%clk 0:02:49]} 19. fxe5 {[%clk 0:01:24]}  Qxe5 {[%clk 0:02:49]} 20. Rf2 {[%clk 0:01:17]}  Rfb8 {[%clk 0:02:46]} 21. Qb3 {[%clk 0:01:16]}  Rf8 {[%clk 0:02:26]} 22. Rb5 {[%clk 0:01:12]}  Qd6 {[%clk 0:02:21]} 23. Rd5 {[%clk 0:01:12]}  Qb6 {[%clk 0:02:21]} 24. Qc4 {[%clk 0:01:01]}  Rac8 {[%clk 0:02:08]} 25. Qxd4 {[%clk 0:01:01]}  Qb1+ {[%clk 0:02:00]} 26. Kg2 {[%clk 0:01:00]}  Qb7 {[%clk 0:02:00]} 27. e4 {[%clk 0:00:57]}  Qb3 {[%clk 0:01:58]} 28. Rd7 {[%clk 0:00:55]}  Qxa3 {[%clk 0:01:54]} 29. Rxa7 {[%clk 0:00:54]}  Qd6 {[%clk 0:01:49]} 30. Qxd6 {[%clk 0:00:54]}  exd6 {[%clk 0:01:50]} 31. Kf3 {[%clk 0:00:53]}  Rc3 {[%clk 0:01:46]} 32. Ke3 {[%clk 0:00:52]}  Rc6 {[%clk 0:01:45]} 33. Kd4 {[%clk 0:00:52]}  h5 {[%clk 0:01:45]} 34. Kd5 {[%clk 0:00:52]}  Rb6 {[%clk 0:01:45]} 35. Rf6 {[%clk 0:00:49]}  Rb3 {[%clk 0:01:44]} 36. Kd4 {[%clk 0:00:49]}  Rb2 {[%clk 0:01:44]} 37. h4 {[%clk 0:00:42]}  Rg2 {[%clk 0:01:44]} 38. Rf3 {[%clk 0:00:42]}  Kg7 {[%clk 0:01:42]} 39. Kd5 {[%clk 0:00:41]}  Rb2 {[%clk 0:01:38]} 40. Kxd6 {[%clk 0:00:39]}  Rb3 {[%clk 0:01:37]} 41. Kd5 {[%clk 0:00:34]}  Rb5+ {[%clk 0:01:35]} 42. Kc4 {[%clk 0:00:34]}  Rb6 {[%clk 0:01:35]} 43. d4 {[%clk 0:00:33]}  Rc8+ {[%clk 0:01:34]} 44. Kd5 {[%clk 0:00:28]}  Rb5+ {[%clk 0:01:28]} 45. Kd6 {[%clk 0:00:27]}  Rb6+ {[%clk 0:01:28]} 46. Kd7 {[%clk 0:00:21]}  Rc4 {[%clk 0:01:29]} 47. Ke8 {[%clk 0:00:19]}  Rc8+ {[%clk 0:01:24]} 48. Kd7 {[%clk 0:00:18]}  Rc4 {[%clk 0:01:25]} 49. Ke8 {[%clk 0:00:18]}  Rb8+ {[%clk 0:01:23]} 50. Ke7 {[%clk 0:00:18]}  Rxd4 {[%clk 0:01:23]} 51. Rxf7+ {[%clk 0:00:18]}  Kh6 {[%clk 0:01:20]} 52. Kf6 {[%clk 0:00:17]}  Rh8 {[%clk 0:01:12]} 53. e5 {[%clk 0:00:17]}  Rd1 {[%clk 0:01:07]} 54. Rg7 {[%clk 0:00:17]}  Rf1+ {[%clk 0:01:04]} 55. Ke6 {[%clk 0:00:17]}  Re8+ {[%clk 0:01:01]} 56. Rge7 {[%clk 0:00:16]}  Rxe7+ {[%clk 0:01:00]} 57. Rxe7 {[%clk 0:00:16]}  g5 {[%clk 0:01:01]} 58. hxg5+ {[%clk 0:00:16]}  Kxg5 {[%clk 0:01:02]} 59. Rg7+ {[%clk 0:00:16]}  Kh6 {[%clk 0:01:01]} 60. Rg8 {[%clk 0:00:16]}  Ra1 {[%clk 0:00:57]} 61. Kf5 {[%clk 0:00:14]}  Rf1+ {[%clk 0:00:55]} 62. Ke6 {[%clk 0:00:14]}  Ra1 {[%clk 0:00:55]} 63. Kf5 {[%clk 0:00:14]}  Rf1+ {[%clk 0:00:55]} 64. Ke6 {[%clk 0:00:15]} 1/2-1/2


[Site "https://www.chess.com"]

[Event "Titled Tuesday Blitz April 18 Early 2023"]
[White "Bas Mas, Jose Joaquin"]
[Black "Barria Santos, Jose Guilherme"]
[WhiteFideId "22219064"]
[BlackFideId "1939300"]
[WhiteElo "2233"]
[BlackElo "2266"]
[Result "1-0"]
[Round "02"]
[TimeControl "180+2"]
[Date "2023.04.18"]
[WhiteClock "0:01:07"]
[BlackClock "0:00:23"]

1. e4 {[%clk 0:03:00]}  c5 {[%clk 0:03:00]} 2. Nc3 {[%clk 0:03:00]}  d6 {[%clk 0:03:00]} 3. f4 {[%clk 0:03:00]}  g6 {[%clk 0:03:00]} 4. Nf3 {[%clk 0:03:01]}  Bg7 {[%clk 0:03:00]} 5. Bb5+ {[%clk 0:03:01]}  Bd7 {[%clk 0:03:00]} 6. Bc4 {[%clk 0:03:02]}  e6 {[%clk 0:03:00]} 7. O-O {[%clk 0:03:02]}  Ne7 {[%clk 0:03:00]} 8. d3 {[%clk 0:03:02]}  O-O {[%clk 0:03:01]} 9. f5 {[%clk 0:03:00]}  exf5 {[%clk 0:02:59]} 10. Qe1 {[%clk 0:02:59]}  Nbc6 {[%clk 0:02:58]} 11. Qh4 {[%clk 0:02:52]}  Qe8 {[%clk 0:01:32]} 12. Bg5 {[%clk 0:02:41]}  Nc8 {[%clk 0:01:30]} 13. Nd5 {[%clk 0:02:37]}  Nd4 {[%clk 0:01:28]} 14. Nc7 {[%clk 0:02:24]}  Nxf3+ {[%clk 0:01:23]} 15. Rxf3 {[%clk 0:02:22]}  Qe5 {[%clk 0:01:24]} 16. Nxa8 {[%clk 0:02:19]}  Qxb2 {[%clk 0:01:17]} 17. Raf1 {[%clk 0:02:18]}  b5 {[%clk 0:01:13]} 18. Bd5 {[%clk 0:02:05]}  Qd4+ {[%clk 0:01:03]} 19. Kh1 {[%clk 0:01:56]}  Be6 {[%clk 0:00:56]} 20. Nc7 {[%clk 0:01:51]}  Bxd5 {[%clk 0:00:56]} 21. Nxd5 {[%clk 0:01:51]}  fxe4 {[%clk 0:00:53]} 22. dxe4 {[%clk 0:01:50]}  f5 {[%clk 0:00:47]} 23. Ne7+ {[%clk 0:01:24]}  Nxe7 {[%clk 0:00:47]} 24. Bxe7 {[%clk 0:01:25]}  Rf7 {[%clk 0:00:45]} 25. exf5 {[%clk 0:01:24]}  Qe5 {[%clk 0:00:29]} 26. f6 {[%clk 0:01:18]}  Bh8 {[%clk 0:00:28]} 27. Re1 {[%clk 0:01:11]}  Qd5 {[%clk 0:00:28]} 28. Qe4 {[%clk 0:01:08]}  Qd2 {[%clk 0:00:25]} 29. Qa8+ {[%clk 0:01:06]}  Rf8 {[%clk 0:00:23]} 30. Qxf8# {[%clk 0:01:07]} 1-0


[Site "https://www.chess.com"]